fUSD/lending_fUSD_20251003
["ID","MTS","AMOUNT","RATE_DAILY","PERIOD"]
[388879503,1759459832789,-1000.0,0.000198,4]
[388879504,1759459832798,-1000.0,0.000198,5]
[388879505,1759459832807,-536.33,0.00019847,2]
[388879506,1759459832816,-159.0,0.00019999,2]
[388879507,1759459832827,-1000.0,0.0002,10]
[388879508,1759459832836,-1000.0,0.0002,10]
[388879509,1759459832845,-1000.0,0.0002,10]
[388879510,1759459832854,-1000.0,0.0002,10]
[388879511,1759459832863,-1000.0,0.0002,10]
[388879513,1759459832872,-1000.0,0.0002,10]
[388879515,1759459832882,-1000.0,0.0002,10]
[388879517,1759459832892,-1000.0,0.0002,10]
[388879519,1759459832901,-1000.0,0.0002,10]
[388879522,1759459832912,-1000.0,0.0002,10]
[388879523,1759459832922,-1000.0,0.0002,10]
[388879524,1759459832931,-1000.0,0.0002,10]
[388879525,1759459832940,-1000.0,0.0002,10]
[388879526,1759459832949,-1000.0,0.0002,10]
[388879527,1759459832958,-1000.0,0.0002,10]
[388879528,1759459832967,-1000.0,0.0002,10]
[388879529,1759459832976,-1000.0,0.0002,10]
[388879530,1759459832985,-1000.0,0.0002,10]
[388879531,1759459832995,-1000.0,0.0002,10]
[388879532,1759459833006,-1000.0,0.0002,10]
[388879533,1759459833015,-1000.0,0.0002,10]
[388879534,1759459833025,-1000.0,0.0002,10]
[388879535,1759459833034,-1000.0,0.0002,10]
[388879536,1759459833043,-1000.0,0.0002,10]
[388879537,1759459833052,-1000.0,0.0002,10]
[388879538,1759459833062,-1000.0,0.0002,10]
[388879539,1759459833071,-1000.0,0.0002,10]
[388879540,1759459833081,-1000.0,0.0002,10]
[388879541,1759459833094,-1000.0,0.0002,10]
[388879542,1759459833104,-1000.0,0.0002,10]
[388879543,1759459833114,-1000.0,0.0002,10]
[388879544,1759459833124,-1292.83690795,0.0002,10]
[388879545,1759459833134,-1232.0,0.0002,2]
[388879546,1759459833143,-575.00924164,0.00020085,2]
[388879547,1759459833152,-1128.61,0.00020242,2]
[388879548,1759459833161,-166.87,0.00020286,2]
[388879549,1759459833170,-520.36,0.00020564,2]
[388879550,1759459833180,-1849.33618605,0.00020777,2]
[388879551,1759459833189,-322.6107,0.00020777,2]
[388879552,1759459833198,-646.65982734,0.00020777,2]
[388879553,1759459833208,-612.18792093,0.00020777,2]
[388879554,1759459833218,-197.52938239,0.00020777,2]
[388879555,1759459833227,-2042.291,0.00020984,2]
[388879556,1759459833237,-1307.0,0.00020984,2]
[388879557,1759459833246,-570.0,0.00020984,2]
[388879558,1759459833257,-1585.0,0.00020984,2]
[388879559,1759459833266,-820.0,0.00020984,2]
[388879560,1759459833276,-1195.514,0.00020984,2]
[388879561,1759459833286,-3957.14679002,0.00020984,2]
[388879562,1759459833346,-292.76220998,0.00020984,2]
[388879563,1759459833356,-2904.16338793,0.00020984,2]
[388879564,1759459833367,-1210.83661207,0.00020984,2]
[388879565,1759459833376,-595.19083243,0.00020984,2]
[388879566,1759459833387,-392.54313184,0.00020984,2]
[388879567,1759459833424,-2806.57946903,0.00020984,2]
[388879568,1759459833435,-1710.36112943,0.00020984,2]
[388879569,1759459833467,-492.0,0.00020984,2]
[388879570,1759459833478,-239.32543727,0.00020984,2]
[388879571,1759459833487,-900.0,0.00020984,2]
[388879572,1759459833497,-2000.0,0.00021,2]
[388879573,1759459833511,-2000.0,0.000211,2]
[388879574,1759459833520,-305.93,0.00021237,2]
[388879575,1759459833530,-861.38834134,0.00021243,2]
[388879576,1759459833540,-2000.0,0.000215,2]
[388879577,1759459833550,-202.81352451,0.00021528,2]
[388879578,1759459833559,-228.25526141,0.00021549,2]
[388879579,1759459833568,-887.50793781,0.00021562,2]
[388879580,1759459833579,-228.25526141,0.00021564,2]
[388879581,1759459833589,-228.25526141,0.00021574,2]
[388879582,1759459833598,-326.71305915,0.00021578,2]
[388879583,1759459833607,-228.25526141,0.00021593,2]
[388879584,1759459833616,-202.81352451,0.00021606,2]
[388879585,1759459833626,-326.71305915,0.00021607,2]
[388879586,1759459833635,-326.71305915,0.00021626,2]
[388879587,1759459833645,-326.71305915,0.00021635,2]
[388879588,1759459833655,-326.71305915,0.00021646,2]
[388879589,1759459833664,-228.25526141,0.00021659,2]
[388879590,1759459833674,-202.81352451,0.0002168,2]
[388879591,1759459833684,-202.81352451,0.00021685,2]
[388879592,1759459833693,-202.81352451,0.00021696,2]
[388879593,1759459833702,-32858.19172643,0.00021698,2]
[388879594,1759459833711,-2000.0,0.000217,7]
[388879595,1759459833721,-150.0,0.000217,2]
[388879596,1759459833730,-848.5416,0.000217,2]
[388879597,1759459833740,-2129.2012,0.000217,2]
[388879598,1759459833750,-189.8844235,0.00021745,2]
[388879599,1759459833759,-161.69766812,0.00021748,2]
[388879600,1759459833769,-161.87521219,0.00021781,2]
[388879601,1759459833779,-11138.76303429,0.00021786,2]
[388879602,1759459833788,-609.56083233,0.00021786,2]
[388879603,1759459833797,-500.0,0.00021799,2]
[388879604,1759459833807,-274.87233597,0.00021799,2]
[388879605,1759459833816,-1000.0,0.000218,2]
[388879606,1759459833825,-4000.0,0.000218,7]
[388879607,1759459833835,-8604.1742,0.000218,2]
[388879608,1759459833844,-1222.84128707,0.000218,2]
[388879609,1759459833853,-159.42828604,0.000218,2]
[388879610,1759459833863,-797.48,0.000218,7]
[388879611,1759459833872,-5000.0,0.000218,2]
[388879612,1759459833881,-6631.73271602,0.000218,2]
[388879613,1759459833892,-1296.327,0.00021816,2]
[388879614,1759459833901,-168.0,0.00021822,2]
[388879615,1759459833912,-400.0,0.0002187,2]
[388879616,1759459833921,-400.0,0.0002187,2]
[388879617,1759459833931,-700.0,0.0002187,2]
[388879618,1759459833940,-506.52231003,0.00021873,2]
[388879619,1759459833950,-200.0,0.00021873,2]
[388879620,1759459833959,-5000.0,0.0002188,3]
[388879621,1759459833968,-3100.0,0.0002188,2]
[388879622,1759459833978,-61675.5630666,0.00021886,2]
[388879623,1759459833987,-3040.9436187,0.00021886,2]
[388879624,1759459833997,-4884.84667801,0.00021886,2]
[388879625,1759459834009,-295.99999997,0.00021886,2]
[388879626,1759459838483,-370.55283938,0.00019159,2]
[388879627,1759459838493,-621.0,0.00020984,2]
[388879628,1759459838503,-281.10756987,0.000218,2]
[388879629,1759459838516,-921.22269752,0.00021886,2]
[388879631,1759459838525,-150.83,0.0002189,2]
[388879632,1759459838535,-150.83,0.0002189,2]
[388879633,1759459838546,-150.74,0.0002189,2]
[388879634,1759459838555,-1196.84,0.0002189,2]
[388879635,1759459838564,-175.59,0.0002189,2]
[388879636,1759459838573,-15.99689319,0.0002189,2]
[388879638,1759459838728,-151.81310681,0.0002189,2]
[388879639,1759459838738,-484.26193053,0.0002189,2]
[388879640,1759459838764,-61.02806947,0.0002189,2]
[388879641,1759459838773,-666.0,0.00021899,2]
[388879642,1759459838783,-262.82656754,0.00021899,2]
[388879646,1759459841229,-37.17343246,0.00021899,2]
[388879647,1759459841239,-204.12450032,0.00021899,2]
[388879648,1759459841250,-500.0,0.00021899,2]
[388879649,1759459841259,-227.38046792,0.00021899,2]
[388879650,1759459841268,-365.13104626,0.00021899,2]
[388879651,1759459841277,-305.21593892,0.000219,2]
[388879652,1759459841386,-511.78406108,0.000219,2]
[388879653,1759459841395,-44.49469423,0.000219,2]
[388879654,1759459841431,-687.03686278,0.000219,2]
[388879655,1759459841495,-11142.91397879,0.000219,2]
[388879656,1759459841555,-446.08647671,0.000219,2]
[388879657,1759459841659,-441.804514,0.000219,2]
[388879658,1759459841670,-3194.250153,0.000219,2]
[388879659,1759459841682,-4621.54372914,0.000219,2]
[388879669,1759459844160,-200.0,0.00020984,2]
[388879670,1759459844170,-102.0,0.000218,2]
[388879671,1759459844321,-685.05743074,0.000218,2]
[388879672,1759459844472,-152.0,0.00021762,4]
[388879673,1759459844481,-154.0,0.000218,2]
[388879677,1759459846955,-152.0,0.00021194,3]
[388879678,1759459846966,-473.07,0.00021205,2]
[388879679,1759459846980,-4058.94256926,0.000218,2]
[388879680,1759459846992,-26371.49736447,0.000219,2]
[388879681,1759459847051,-279.4330577,0.000219,2]
[388879682,1759459847064,-4999.07760001,0.000219,2]
[388879683,1759459847076,-3599.9,0.000219,2]
[388879684,1759459847088,-793.89011,0.000219,2]
[388879685,1759459847099,-683.12367544,0.000219,2]
[388879686,1759459847110,-9048.39708666,0.000219,2]
[388879687,1759459847149,-432.04154221,0.000219,2]
[388879688,1759459847160,-2255.86867991,0.000219,2]
[388879689,1759459847199,-506.7,0.000219,2]
[388879698,1759460075155,500.0,0.00027397,120]
[388879699,1759460075329,500.0,0.00027671,120]
[388879700,1759460075509,500.0,0.00027945,120]
[388879701,1759460075723,500.0,0.00028219,120]
[388879702,1759460076259,500.0,0.00028493,120]
[388879703,1759460076445,500.0,0.00028767,120]
[388879704,1759460076484,500.0,0.00029041,120]
[388879705,1759460077202,500.0,0.00029315,120]
[388879706,1759460077329,500.0,0.00029589,120]
[388879707,1759460077470,500.0,0.00029863,120]
[388879708,1759460083343,606.49373171,0.00030137,120]
[388879716,1759460213421,555.64,0.00016602,2]
[388879737,1759460492667,500.0,0.00030136,120]
[388879738,1759460502043,578.05544287,0.00030137,120]
[388879743,1759460610072,500.0,0.00030136,120]
[388879744,1759460610845,500.0,0.00030136,120]
[388879745,1759460611180,500.0,0.00030136,120]
[388879746,1759460611583,500.0,0.00030136,120]
[388879747,1759460611964,500.0,0.00030136,120]
[388879748,1759460629741,500.0,0.00030136,120]
[388879749,1759460634712,500.0,0.00030136,120]
[388879751,1759460644082,500.0,0.00030136,120]
[388879752,1759460656031,500.0,0.00030136,120]
[388879753,1759460658993,500.0,0.00030136,120]
[388879754,1759460665352,500.0,0.00030136,120]
[388879755,1759460666067,500.0,0.00030136,120]
[388879812,1759460985058,166.49,0.00016022,2]
[388879857,1759461031777,-300.0,0.00019198,2]
[388879858,1759461031786,-370.55283938,0.00019198,2]
[388879859,1759461031795,-45.71285897,0.00019198,2]
[388879860,1759461031808,-2454.28714103,0.00019198,2]
[388879861,1759461031818,-305.57,0.00019199,2]
[388879862,1759461031827,-303.35,0.00019199,2]
[388879863,1759461031837,-303.35,0.00019199,2]
[388879864,1759461031846,-300.68,0.00019199,2]
[388879865,1759461031856,-301.33,0.00019199,2]
[388879866,1759461031865,-305.54,0.00019199,2]
[388879867,1759461031875,-302.84,0.00019199,2]
[388879868,1759461031884,-301.19,0.00019199,2]
[388879869,1759461031893,-134.48988901,0.00019199,2]
[388879870,1759461031905,-167.81011099,0.00019199,2]
[388879871,1759461031915,-300.4,0.00019199,2]
[388879872,1759461031925,-248.21404957,0.000192,2]
[388879873,1759461031935,-146.06591177,0.000192,2]
[388879874,1759461031990,-155.37408823,0.000192,2]
[388879876,1759461032000,-300.43668807,0.000192,2]
[388879878,1759461032012,-5.24331193,0.000192,2]
[388879880,1759461032021,-302.63,0.000192,2]
[388879882,1759461032031,-303.14,0.000192,2]
[388879884,1759461032040,-301.86,0.000192,2]
[388879886,1759461032049,-302.37,0.000192,2]
[388879888,1759461032059,-305.7,0.000192,2]
[388879890,1759461032068,-300.9,0.000192,2]
[388879892,1759461032078,-305.87,0.000192,2]
[388879894,1759461032087,-305.65,0.000192,2]
[388879896,1759461032098,-305.0,0.00019201,2]
[388879898,1759461032107,-301.77,0.00019208,2]
[388879899,1759461032116,-305.81,0.00019242,2]
[388879901,1759461032126,-302.28,0.00019428,2]
[388879904,1759461032136,-303.61,0.00019428,2]
[388879906,1759461032145,-666.0,0.00020067,3]
[388879907,1759461032155,-744.0,0.00020089,2]
[388879909,1759461032164,-531.8,0.00020205,2]
[388879911,1759461032173,-1000.0,0.00020222,2]
[388879913,1759461032182,-150.0,0.0002024,2]
[388879915,1759461032192,-500.0,0.00020287,3]
[388879916,1759461032201,-9957.42,0.00020304,2]
[388879917,1759461032211,-198.3491923,0.00020365,2]
[388879918,1759461032220,-240.42326339,0.0002049,2]
[388879919,1759461032229,-177.91,0.00020549,2]
[388879920,1759461032239,-282.49733448,0.00020615,2]
[388879921,1759461032248,-324.57140558,0.0002074,2]
[388879922,1759461032258,-427.67195445,0.00020804,2]
[388879923,1759461032267,-307.5435468,0.00020804,2]
[388879924,1759461032276,-322.6107,0.00020804,2]
[388879925,1759461032285,-366.64547667,0.00020865,2]
[388879926,1759461032294,-900.0,0.00020886,2]
[388879927,1759461032304,-4115.0,0.00020886,2]
[388879928,1759461032314,-6236.0,0.00020886,2]
[388879929,1759461032323,-205.98,0.000209,2]
[388879930,1759461032333,-205.98,0.000209,2]
[388879931,1759461032343,-205.98,0.000209,2]
[388879932,1759461032352,-205.98,0.000209,2]
[388879933,1759461032362,-420.0,0.00020921,2]
[388879934,1759461032371,-1000.0,0.00020925,2]
[388879935,1759461032380,-1000.0,0.00020965,2]
[388879936,1759461032390,-150.261,0.00020984,2]
[388879937,1759461032400,-150.309,0.00020984,2]
[388879938,1759461032413,-150.0,0.00020984,2]
[388879939,1759461032422,-150.7,0.00020984,2]
[388879940,1759461032432,-150.0,0.00020984,2]
[388879941,1759461032442,-150.0,0.00020984,2]
[388879942,1759461032452,-150.265,0.00020984,2]
[388879943,1759461032461,-178.856,0.00020984,2]
[388879944,1759461032471,-1585.0,0.00020984,2]
[388879945,1759461032482,-1181.0,0.00020984,2]
[388879946,1759461032491,-1000.0,0.00020986,2]
[388879947,1759461032500,-408.71954776,0.0002099,2]
[388879948,1759461032510,-205.98,0.000211,2]
[388879949,1759461032519,-450.79361886,0.00021115,2]
[388879950,1759461032529,-2500.0,0.00021118,2]
[388879951,1759461032538,-320.06656424,0.00021118,2]
[388879952,1759461032548,-1574.89627027,0.00021118,2]
[388879953,1759461032557,-195.0,0.00021118,2]
[388879954,1759461032567,-2000.0,0.00021118,2]
[388879955,1759461032577,-492.86768995,0.0002124,2]
[388879956,1759461032586,-646.041256,0.00021243,2]
[388879957,1759461032596,-473.71,0.0002126,2]
[388879958,1759461032605,-383.0,0.00021297,2]
[388879959,1759461032615,-383.0,0.00021322,2]
[388879960,1759461032624,-383.0,0.00021341,2]
[388879961,1759461032633,-168.0,0.00021345,2]
[388879962,1759461032643,-1260.0,0.00021359,2]
[388879963,1759461032652,-534.94176104,0.00021365,2]
[388879964,1759461032662,-383.0,0.0002142,2]
[388879965,1759461032671,-383.0,0.00021422,2]
[388879966,1759461032680,-168.0,0.00021426,2]
[388879967,1759461032690,-869.01818911,0.00021442,2]
[388879968,1759461032699,-161.69766812,0.00021447,2]
[388879969,1759461032708,-1260.0,0.00021474,2]
[388879970,1759461032718,-577.01583214,0.0002149,2]
[388879971,1759461032727,-154.51024293,0.00021537,2]
[388879972,1759461032737,-154.51024293,0.00021576,2]
[388879973,1759461032746,-154.51024293,0.00021614,2]
[388879974,1759461032756,-619.08990323,0.00021615,2]
[388879975,1759461032766,-154.51024293,0.00021673,2]
[388879976,1759461032775,-154.51024293,0.00021676,2]
[388879977,1759461032785,-1700.0,0.000217,7]
[388879978,1759461032795,-168.0,0.00021709,2]
[388879979,1759461032805,-661.16397432,0.0002174,2]
[388879980,1759461032814,-168.0,0.00021742,2]
[388879981,1759461032823,-1000.0,0.00021773,2]
[388879982,1759461032832,-383.0,0.00021778,2]
[388879983,1759461032841,-1103.0427,0.00021786,2]
[388879984,1759461032851,-1000.0,0.00021799,2]
[388879985,1759461032860,-33578.8892,0.000218,2]
[388879986,1759461032869,-1000.0,0.000218,2]
[388879987,1759461032878,-33325.1952,0.000218,2]
[388879988,1759461032888,-3400.0,0.000218,7]
[388879989,1759461032897,-455.93693347,0.000218,2]
[388879990,1759461032907,-1235.63848904,0.000218,2]
[388879991,1759461032916,-160.03485121,0.000218,2]
[388879992,1759461032925,-5000.0,0.000218,2]
[388879993,1759461032936,-334.47000126,0.000218,2]
[388879994,1759461032948,-7545.50619223,0.000218,2]
[388879995,1759461032966,-430.68108835,0.000218,2]
[388879996,1759461032981,-1434.794,0.00021816,2]
[388879997,1759461032991,-383.0,0.00021856,2]
[388879998,1759461033001,-703.23804542,0.00021865,2]
[388879999,1759461033010,-8983.626359,0.00021868,2]
[388880000,1759461033019,-3865.0991635,0.00021868,2]
[388880001,1759461033029,-3105.4188302,0.00021868,2]
[388880002,1759461033038,-13223.4236147,0.00021868,2]
[388880003,1759461033049,-1665.3598623,0.00021868,2]
[388880004,1759461033058,-168.0,0.00021872,2]
[388880005,1759461033068,-200.0,0.00021873,2]
[388880006,1759461033078,-383.0,0.00021878,2]
[388880007,1759461033087,-440.0,0.0002188,2]
[388880008,1759461033096,-207.29005882,0.0002189,2]
[388880009,1759461033105,-150.83,0.0002189,2]
[388880010,1759461033114,-150.83,0.0002189,2]
[388880011,1759461033124,-300.0,0.00021899,2]
[388880012,1759461033133,-300.0,0.00021899,2]
[388880013,1759461033142,-679.68483121,0.00021899,2]
[388880014,1759461033151,-165.615,0.00021899,2]
[388880015,1759461033160,-1000.0,0.00021899,2]
[388880016,1759461033170,-993.8958,0.00021899,2]
[388880017,1759461033179,-1032.995,0.00021899,2]
[388880018,1759461033189,-605.59173238,0.00021899,2]
[388880019,1759461033198,-159.16632755,0.00021899,2]
[388880020,1759461033207,-533.27,0.000219,2]
[388880021,1759461033217,-963.0,0.000219,2]
[388880022,1759461033226,-5200.0,0.000219,7]
[388880023,1759461033236,-274920.46124853,0.000219,2]
[388880024,1759461033245,-1000.0,0.000219,2]
[388880025,1759461033254,-1000.0,0.000219,2]
[388880026,1759461033264,-1000.0,0.000219,2]
[388880027,1759461033274,-1000.0,0.000219,2]
[388880028,1759461033283,-1000.0,0.000219,2]
[388880029,1759461033293,-1000.0,0.000219,2]
[388880030,1759461033303,-214.1,0.000219,2]
[388880031,1759461033312,-1000.0,0.000219,2]
[388880032,1759461033321,-538.71203203,0.000219,2]
[388880033,1759461033331,-214.1,0.000219,2]
[388880034,1759461033340,-150.0,0.000219,2]
[388880035,1759461033349,-6281.12222614,0.000219,2]
[388880036,1759461033358,-150.0,0.000219,2]
[388880037,1759461033368,-5625.53899274,0.000219,2]
[388880038,1759461033377,-150.0,0.000219,2]
[388880039,1759461033387,-4256.27351805,0.000219,2]
[388880040,1759461033396,-1000.0,0.000219,2]
[388880041,1759461033410,-150.0,0.000219,2]
[388880042,1759461033419,-59396.87922895,0.000219,2]
[388880043,1759461033428,-1000.0,0.000219,2]
[388880044,1759461033438,-151.04832661,0.000219,2]
[388880045,1759461033447,-505017.03260108,0.000219,2]
[388880046,1759461033457,-300.18146813,0.000219,2]
[388880047,1759461033467,-1000.0,0.000219,2]
[388880048,1759461033476,-1000.0,0.000219,2]
[388880049,1759461033486,-1000.0,0.000219,2]
[388880050,1759461033496,-191889.94335957,0.000219,2]
[388880051,1759461033507,-151.0,0.000219,2]
[388880052,1759461033517,-151.0,0.000219,2]
[388880053,1759461033527,-151.0,0.000219,2]
[388880054,1759461033537,-151.0,0.000219,2]
[388880055,1759461033547,-151.0,0.000219,2]
[388880056,1759461033557,-155.344754,0.000219,2]
[388880057,1759461033567,-152.816334,0.000219,2]
[388880058,1759461033576,-152.212013,0.000219,2]
[388880059,1759461033587,-151.703944,0.000219,2]
[388880060,1759461033597,-560.26218418,0.000219,2]
[388880061,1759461033608,-151.0,0.000219,2]
[388880062,1759461033617,-160.686024,0.000219,2]
[388880063,1759461033627,-151.0,0.000219,2]
[388880064,1759461033637,-151.0,0.000219,2]
[388880065,1759461033648,-155.01194,0.000219,2]
[388880066,1759461033658,-151.0,0.000219,2]
[388880067,1759461033669,-210.808839,0.000219,2]
[388880068,1759461033679,-151.0,0.000219,2]
[388880069,1759461033689,-151.0,0.000219,2]
[388880070,1759461033698,-151.0,0.000219,2]
[388880071,1759461033707,-151.0,0.000219,2]
[388880072,1759461033717,-151.0,0.000219,2]
[388880073,1759461033726,-215.012034,0.000219,2]
[388880074,1759461033736,-151.0,0.000219,2]
[388880075,1759461033745,-151.0,0.000219,2]
[388880076,1759461033755,-151.0,0.000219,2]
[388880077,1759461033765,-151.0,0.000219,2]
[388880078,1759461033775,-289.238984,0.000219,2]
[388880079,1759461033785,-152.236484,0.000219,2]
[388880080,1759461033795,-151.0,0.000219,2]
[388880081,1759461033807,-153.078853,0.000219,2]
[388880082,1759461033817,-152.117304,0.000219,2]
[388880083,1759461033827,-151.71248,0.000219,2]
[388880084,1759461033837,-151.539698,0.000219,2]
[388880085,1759461033850,-151.0,0.000219,2]
[388880086,1759461033860,-151.0,0.000219,2]
[388880087,1759461033871,-151.798059,0.000219,2]
[388880088,1759461033881,-151.230996,0.000219,2]
[388880089,1759461033890,-151.0,0.000219,2]
[388880090,1759461033900,-151.0,0.000219,2]
[388880091,1759461033909,-151.0,0.000219,2]
[388880092,1759461033919,-151.0,0.000219,2]
[388880093,1759461033928,-151.0,0.000219,2]
[388880094,1759461033938,-151.0,0.000219,2]
[388880095,1759461033948,-151.0,0.000219,2]
[388880096,1759461033958,-151.0,0.000219,2]
[388880097,1759461033968,-151.0,0.000219,2]
[388880098,1759461033978,-151.0,0.000219,2]
[388880099,1759461033989,-151.0,0.000219,2]
[388880100,1759461033998,-151.0,0.000219,2]
[388880101,1759461034008,-151.0,0.000219,2]
[388880102,1759461034017,-152.331662,0.000219,2]
[388880103,1759461034026,-178.107781,0.000219,2]
[388880104,1759461034036,-178.107781,0.000219,2]
[388880105,1759461034045,-178.107781,0.000219,2]
[388880106,1759461034058,-178.107781,0.000219,2]
[388880107,1759461034067,-151.0,0.000219,2]
[388880108,1759461034077,-178.107781,0.000219,2]
[388880109,1759461034087,-151.0,0.000219,2]
[388880110,1759461034096,-178.107781,0.000219,2]
[388880111,1759461034106,-151.0,0.000219,2]
[388880112,1759461034116,-178.107781,0.000219,2]
[388880113,1759461034126,-151.0,0.000219,2]
[388880114,1759461034136,-178.107781,0.000219,2]
[388880115,1759461034146,-151.0,0.000219,2]
[388880116,1759461034156,-178.107781,0.000219,2]
[388880117,1759461034166,-151.0,0.000219,2]
[388880118,1759461034176,-178.107781,0.000219,2]
[388880119,1759461034186,-178.107781,0.000219,2]
[388880120,1759461034195,-178.107781,0.000219,2]
[388880121,1759461034204,-151.0,0.000219,2]
[388880122,1759461034214,-151.0,0.000219,2]
[388880123,1759461034223,-154.278584,0.000219,2]
[388880124,1759461034232,-151.0,0.000219,2]
[388880125,1759461034241,-151.0,0.000219,2]
[388880126,1759461034252,-151.0,0.000219,2]
[388880127,1759461034261,-152.185206,0.000219,2]
[388880128,1759461034271,-151.0,0.000219,2]
[388880129,1759461034280,-151.0,0.000219,2]
[388880130,1759461034289,-151.0,0.000219,2]
[388880131,1759461034301,-151.0,0.000219,2]
[388880132,1759461034310,-151.0,0.000219,2]
[388880133,1759461034319,-151.0,0.000219,2]
[388880134,1759461034330,-151.0,0.000219,2]
[388880135,1759461034340,-151.0,0.000219,2]
[388880136,1759461034350,-151.0,0.000219,2]
[388880137,1759461034359,-151.0,0.000219,2]
[388880138,1759461034369,-151.0,0.000219,2]
[388880139,1759461034378,-151.0,0.000219,2]
[388880140,1759461034387,-151.0,0.000219,2]
[388880141,1759461034396,-151.0,0.000219,2]
[388880142,1759461034410,-151.0,0.000219,2]
[388880143,1759461034419,-151.0,0.000219,2]
[388880144,1759461034427,-151.0,0.000219,2]
[388880145,1759461034437,-151.0,0.000219,2]
[388880146,1759461034446,-151.0,0.000219,2]
[388880147,1759461034454,-151.0,0.000219,2]
[388880148,1759461034463,-151.0,0.000219,2]
[388880149,1759461034472,-151.0,0.000219,2]
[388880150,1759461034484,-151.0,0.000219,2]
[388880151,1759461034493,-151.556649,0.000219,2]
[388880152,1759461034502,-151.748644,0.000219,2]
[388880153,1759461034511,-439.64461,0.000219,2]
[388880154,1759461034520,-439.64461,0.000219,2]
[388880155,1759461034529,-439.64461,0.000219,2]
[388880156,1759461034539,-439.64461,0.000219,2]
[388880157,1759461034548,-439.64461,0.000219,2]
[388880158,1759461034562,-439.64461,0.000219,2]
[388880159,1759461034571,-439.64461,0.000219,2]
[388880160,1759461034580,-439.64461,0.000219,2]
[388880161,1759461034589,-439.64461,0.000219,2]
[388880162,1759461034598,-439.64461,0.000219,2]
[388880163,1759461034608,-439.64461,0.000219,2]
[388880164,1759461034617,-439.64461,0.000219,2]
[388880165,1759461034626,-439.64461,0.000219,2]
[388880166,1759461034635,-439.64461,0.000219,2]
[388880167,1759461034644,-439.64461,0.000219,2]
[388880168,1759461034653,-439.64461,0.000219,2]
[388880169,1759461034662,-151.0,0.000219,2]
[388880170,1759461034672,-151.0,0.000219,2]
[388880171,1759461034681,-151.0,0.000219,2]
[388880172,1759461034691,-151.0,0.000219,2]
[388880173,1759461034701,-151.0,0.000219,2]
[388880174,1759461034711,-151.0,0.000219,2]
[388880175,1759461034721,-151.0,0.000219,2]
[388880176,1759461034731,-151.0,0.000219,2]
[388880177,1759461034740,-151.0,0.000219,2]
[388880178,1759461034750,-152.602707,0.000219,2]
[388880179,1759461034762,-151.0,0.000219,2]
[388880180,1759461034783,-268.786152,0.000219,2]
[388880181,1759461034807,-151.0,0.000219,2]
[388880182,1759461034829,-151.0,0.000219,2]
[388880183,1759461034852,-151.0,0.000219,2]
[388880184,1759461034876,-151.0,0.000219,2]
[388880185,1759461034899,-257.517857,0.000219,2]